Cogmind - Beta 13 @@@ ROGUE MODE // 2024.04.22 @ 13:37:56 Player: Morphaana Result: Self-destructed Performance ------------- Evolutions (1) 500 Regions Visited (3) 600 Robots Destroyed (85) 425 Value Destroyed (2299) 2299 Prototype IDs (3) 60 Alien Tech Used (0) 0 Bonus (313) 313 TOTAL SCORE: 4197 Bonus ------- High Alert Combat Kills 253 Follower Combat Kills 60 Cogmind --------- Core Integrity 92/400 Matter 246/300 Energy 265/265 System Corruption 6% Temperature Cool (0) Movement Treading (240) Ox1 Location -9/Materials Parts ------- > --- POWER (1) -------- Reinforced Ion Engine > --- PROPULSION (3) --- Improved Treads > --- UTILITY (3) ------ Large Storage Unit Light Armor Plating > --- WEAPON (2) ------- Assault Rifle > --- INVENTORY (15) --- Light Treads Improved Treads Improved Treads VTOL Module VTOL Module Improved Flight Unit Improved Heat Sink High-capacity Storage Unit Structural Scanner Machine Analyzer Hacking Suite Hacking Suite Small Laser Grenade Launcher Katana Peak State ------------ > --- POWER ------------ Light Nuclear Core > --- PROPULSION ------- Light Treads Light Treads Light Treads > --- UTILITY ---------- Large Storage Unit Targeting Computer Light Armor Plating > --- WEAPON ----------- Heavy Assault Rifle Heavy Assault Rifle > --- INVENTORY -------- Light Treads Compact Wheel Compact Wheel VTOL Module VTOL Module Improved Heat Sink High-capacity Storage Unit Structural Scanner Hacking Suite Beamcaster Heavy Assault Rifle Heavy Assault Rifle Heavy Assault Rifle Grenade Launcher Katana [Rating: 16] Favorites ----------- Power Ion Engine Engine Ion Engine Power Core Light Nuclear Core Propulsion Light Treads Treads Light Treads Wheel Wheel Utility Large Storage Unit Storage Large Storage Unit Processor Targeting Computer Protection Light Armor Plating Weapon Heavy Assault Rifle Energy Gun Small Laser Ballistic Gun Heavy Assault Rifle Launcher Grenade Launcher Build | -11 -10 -10 -9 ------- Run | Yrd Mat Min Mat Slots Evolved 2 | . . . 2 Power . | . . . . Propulsion 1 | . . . 1 Utility 1 | . . . 1 Weapon . | . . . . Parts Attached 73 | 7 9 2 55 Power 7 | 2 2 . 3 Engine 6 | 2 2 . 2 Core 1 | . . . 1 Reactor . | . . . . Propulsion 34 | 2 2 . 30 Treads 31 | 2 . . 29 Leg . | . . . . Wheel 3 | . 2 . 1 Hover . | . . . . Flight . | . . . . Utility 12 | 1 2 1 8 Device . | . . . . Storage 2 | 1 1 . . Processor 2 | . . . 2 Hackware . | . . . . Protection 8 | . 1 1 6 Artifact . | . . . . Weapon 20 | 2 3 1 14 Energy Gun 1 | 1 . . . Energy Cannon . | . . . . Ballistic Gun 17 | 1 3 1 12 Ballistic Cannon . | . . . . Launcher 2 | . . . 2 Special Weapon . | . . . . Impact Weapon . | . . . . Slashing Weapon . | . . . . Piercing Weapon . | . . . . Special Melee Weapon . | . . . . Unidentified Prototypes . | . . . . Parts Lost 19 | . 2 2 15 Power 3 | . 1 . 2 Propulsion 5 | . 1 . 4 Utility 7 | . . 1 6 Weapon 4 | . . 1 3 Highest Loss Streak 4 | . 1 2 4 To Critical Strikes . | . . . . Average Slot Usage (%) 87 | . 90 99 85 Engine 10 | . 14 14 8 Treads 22 | . 11 . 29 Wheel 6 | . 13 28 1 Storage 12 | . 14 14 11 Processor 2 | . . . 4 Protection 9 | . 8 13 9 Ballistic Gun 21 | . 25 27 19 Naked Turns . | . . . . Heaviest Build 42 | 12 32 32 42 Greatest Support 69 | 40 40 20 69 Greatest Overweight (x) 3 | 3 2 1 3 Average Overweight (x) . | . . 1 . Largest Inventory Capacity 15 | 8 15 15 15 Average Capacity 14 | 7 12 15 15 Most Carried 15 | 1 15 15 15 Average Carried 12 | . 7 14 14 Final Capacity 15 | 8 15 15 15 Final Carried 15 | 1 15 15 15 Class Distribution -------------------- 56% | Mutant 43% | Scavenger-Mutant Dominant Class ---------------- Mutant | -10/Materials Mutant | -10/Mines Scavenger-Mutant | -9/Materials Resources | -11 -10 -10 -9 ----------- Run | Yrd Mat Min Mat Matter Collected 2109 | 189 449 87 1384 Remotely . | . . . . Salvage Created 3174 | . 791 195 2188 Parts 196 | . 43 9 144 Haulers Intercepted 8 | . 2 . 6 Recyclers Shooed 1 | . . . 1 Parts Field Recycled . | . . . . Retrieved Matter . | . . . . Parts Self-Destructed . | . . . . Prevented . | . . . . Kills | -11 -10 -10 -9 ------- Run | Yrd Mat Min Mat Combat Hostiles Destroyed 61 | . 15 2 44 Guns 52 | . 15 2 35 AOE 9 | . . . 9 Classes Destroyed 11 | . 5 1 5 Worker 1 | . 1 . . Hauler 8 | . 2 . 6 Recycler 3 | . . 1 2 Mechanic 1 | . . . 1 Operator 4 | . 1 . 3 Watcher 7 | . 3 . 4 Swarmer 10 | . . . 10 Grunt 36 | . 15 2 19 Brawler 2 | . . . 2 Duelist 3 | . . . 3 Sentry 10 | . . . 10 Best Kill Streak 6 | . 4 3 6 Combat Bots Only 5 | . 3 2 5 Max Kills in Single Turn 4 | . 1 1 4 Gunslinging . | . . . . Exploded 4 | . . . 4 Melee . | . . . . Uniques/NPCs Destroyed . | . . . . Combat | -11 -10 -10 -9 -------- Run | Yrd Mat Min Mat Hostile Shots Fired 396 | . 100 19 277 Missed 106 | . 28 5 73 Damage Taken 4108 | . 912 184 3012 Core 547 | . 215 24 308 Absorbed by Shields . | . . . . Core Remaining (%) 52 | 100 . 4 . Volleys Fired 257 | . 75 8 174 Largest 2 | . 2 2 2 Hottest 60 | . 60 40 46 Shots Fired 446 | . 147 14 285 Gun 442 | . 147 14 281 Cannon . | . . . . Launcher 4 | . . . 4 Special . | . . . . Kinetic 418 | . 123 14 281 Thermal 24 | . 24 . . Explosive 4 | . . . 4 Electromagnetic . | . . . . Robot Hit Streak 31 | . 11 5 31 Robot Miss Streak 4 | . 3 2 4 Penetration Max . | . . . . Secondary Targets 7 | . 1 . 6 Max Gunslinging Chain 1 | . 1 . 1 Shots Hit Robots 316 | . 99 9 208 Core Hits 139 | . 41 4 94 Critical Kills . | . . . . Critical Parts Destroyed 3 | . 1 1 1 Critical Strikes 3 | . 1 1 1 Destroy 3 | . 1 1 1 Melee Attacks . | . . . . Impact . | . . . . Slashing . | . . . . Piercing . | . . . . Sneak Attacks . | . . . . Combat Hostiles . | . . . . Follow-up Attacks . | . . . . Damage Inflicted 4965 | . 1226 133 3606 Guns 4456 | . 1223 112 3121 Cannons . | . . . . Explosions 455 | . . . 455 Melee . | . . . . Ramming 54 | . 3 21 30 Kinetic 4213 | . 980 112 3121 Thermal 243 | . 243 . . Explosive 455 | . . . 455 Electromagnetic . | . . . . Impact . | . . . . Slashing . | . . . . Piercing . | . . . . Highest Corruption 6 | . 4 4 6 Average Corruption 4 | . 3 4 4 Corruption Purged . | . . . . Corruption Blocked . | . . . . Effects 68 | . 4 8 56 Message Errors 17 | . 1 4 12 Matter Fused 14 | . 1 1 12 Heat Flow Errors 8 | . . 1 7 Energy Discharges 11 | . 1 . 10 Parts Rejected 1 | . . . 1 Parts Fused 1 | . . . 1 Data Loss (minor) 11 | . 1 1 9 Data Loss (major) 1 | . . . 1 Misfires 2 | . . . 2 Alerts 2 | . . 1 1 Overload Shots . | . . . . Overflow Damage 15 | . . . 15 Projectiles . | . . . . Explosions 15 | . . . 15 Melee . | . . . . Knockbacks . | . . . . Impact . | . . . . Kinetic . | . . . . Secondary . | . . . . Self-Inflicted Damage 11 | . . 10 1 Shots . | . . . . Rammed 9 | . 1 1 7 Targets Rammed 10 | . 2 1 7 Kicked . | . . . . Crushed 1 | . 1 . . Highest Temperature 277 | . 277 184 228 Average Temperature 69 | . 108 68 45 Received Heat Transfer 1680 | . 501 81 1098 Siege Activations . | . . . . Robots Corrupted . | . . . . Combat Hostiles . | . . . . Parts Fried . | . . . . Impact Corruptions . | . . . . Robots Melted . | . . . . Combat Hostiles . | . . . . Parts Melted . | . . . . Heat Transferred 550 | . 550 . . Parts Sabotaged . | . . . . Parts Stolen . | . . . . Parts Stripped . | . . . . Power Chain Reactions . | . . . . Alert | -11 -10 -10 -9 ------- Run | Yrd Mat Min Mat Peak Influence 727 | . 301 155 727 Initial 72 | . . 72 60 Average 366 | . 130 102 494 Maximum Alert Level 3 | . 1 . 3 Low Security (%) 31 | 100 82 100 3 Level 1 18 | . 17 . 21 Level 2 42 | . . . 64 Level 3 7 | . . . 10 Level 4 . | . . . . Level 5 . | . . . . High Security . | . . . . Max Security . | . . . . Squads Dispatched 10 | . 3 . 7 Investigation 3 | . 2 . 1 Extermination . | . . . . Reinforcement 3 | . 1 . 2 Assault 4 | . . . 4 Garrison . | . . . . Intercept . | . . . . Searches Triggered . | . . . . Construction Impeded . | . . . . Haulers Reinforced . | . . . . Active Scanning Responses . | . . . . Cargo Convoy Interrupts . | . . . . Stealth | -11 -10 -10 -9 --------- Run | Yrd Mat Min Mat Distress Signals 4 | . 2 . 2 Communications Jammed . | . . . . Distress Signals . | . . . . Times Spotted 104 | . 28 9 67 Peak Tracking Total 6 | . 4 5 6 Tactical Retreats 1 | . 1 . . Traps | -11 -10 -10 -9 ------- Run | Yrd Mat Min Mat Traps Triggered 7 | . 3 . 4 Indirectly . | . . . . Trap Hack Attempts . | . . . . Triggered . | . . . . Disarmed 4 | . . . 4 Reprogrammed . | . . . . Reused . | . . . . Traps Extracted . | . . . . Installed . | . . . . Triggered . | . . . . Machines | -11 -10 -10 -9 ---------- Run | Yrd Mat Min Mat Machines Disabled 1 | . . . 1 Max in Single Turn 1 | . . . 1 Machines Repaired . | . . . . Machines Dismantled . | . . . . Machines Sabotaged . | . . . . Overloaded Fab Kills . | . . . . Hacking | -11 -10 -10 -9 --------- Run | Yrd Mat Min Mat Machines Accessed 18 | . 8 . 10 Terminals 13 | . 6 . 7 Fabricators . | . . . . Repair Stations . | . . . . Recycling Units 4 | . 2 . 2 Scanalyzers 1 | . . . 1 Garrison Access . | . . . . Total Hacks 53 | . 25 . 28 Successful 29 | . 12 . 17 Failed 23 | . 12 . 11 Catastrophic 2 | . 2 . . Database Lockouts 1 | . 1 . . Manual 31 | . 13 . 18 Terminals 37 | . 20 . 17 Fabricators . | . . . . Repair Stations . | . . . . Recycling Units 11 | . 5 . 6 Scanalyzers 5 | . . . 5 Garrison Access . | . . . . Terminal Hacks 16 | . 8 . 8 Record 1 | . 1 . . Robot Analysis 4 | . 2 . 2 Prototype ID Bank 1 | . . . 1 Branch Access Points 2 | . 1 . 1 Terminal Index 1 | . . . 1 Alert Level 1 | . 1 . . Locate Traps 1 | . . . 1 Disarm Traps 1 | . . . 1 Investigation Status 1 | . 1 . . Hauler Manifests 2 | . 1 . 1 Registered Components 1 | . 1 . . Fabricator Hacks . | . . . . Repair Station Hacks . | . . . . Recycling Unit Hacks 5 | . 3 . 2 Report Inventory 4 | . 2 . 2 Retrieve Components 1 | . 1 . . Scanalyzer 3 | . . . 3 Insert Component 2 | . . . 2 Analyze 1 | . . . 1 Garrison Access Hacks . | . . . . Unauthorized Hacks 5 | . 1 . 4 Terminals 2 | . 1 . 1 Botnet 2 | . 1 . 1 Fabricators . | . . . . Repair Stations . | . . . . Recycling Units 3 | . . . 3 Reject 2 | . . . 2 Mask 1 | . . . 1 Scanalyzers . | . . . . Garrison Access . | . . . . Data Cores Recovered 1 | . . . 1 Used . | . . . . Hacking Detections 14 | . 7 . 7 Full Trace Events 4 | . 3 . 1 Feedback Events . | . . . . Feedback Blocked . | . . . . Robot Schematics Acquired . | . . . . Robots Built . | . . . . Authchips . | . . . . Time . | . . . . Total Robot Build Rating . | . . . . Part Schematics Acquired 1 | . . . 1 Parts Built . | . . . . Authchips . | . . . . Time . | . . . . Total Part Build Rating . | . . . . Parts Repaired . | . . . . Time . | . . . . Parts Recycled . | . . . . Recycled Matter . | . . . . Retrieved Matter . | . . . . Retrieved Components 2 | . 2 . . Parts Scanalyzed 2 | . . . 2 Part Schematics Acquired 1 | . . . 1 Parts Damaged . | . . . . Bothacking | -11 -10 -10 -9 ------------ Run | Yrd Mat Min Mat Used RIF Installer . | . . . . Robots Hacked . | . . . . Non-combat . | . . . . Combat . | . . . . Robot Hacks Applied . | . . . . Relay Couplers Released . | . . . . Fabnet Peak Effective % . | . . . . Robots Rewired . | . . . . Allies Hacked . | . . . . Hacks Repelled . | . . . . Allies | -11 -10 -10 -9 -------- Run | Yrd Mat Min Mat Total Allies 1 | . . 1 . Largest Group 1 | . . 1 . Highest-Rated Group 31 | . . 31 . Highest-Rated Ally 31 | . . 31 . Total Orders . | . . . . Ally Attacks 9 | . . 9 . Total Damage 148 | . . 148 . Kills 2 | . . 2 . Allies Corrupted . | . . . . Allies Melted 1 | . . 1 . Intel | -11 -10 -10 -9 ------- Run | Yrd Mat Min Mat Robot Analysis Total 4 | . 2 . 2 Derelict Logs Recovered 1 | . . 1 . Drone Launches . | . . . . Drone Recoveries . | . . . . Exploration | -11 -10 -10 -9 ------------- Run | Yrd Mat Min Mat Turns Passed 4361 | 62 1101 322 2876 Spaces Moved 2317 | 34 639 271 1373 Core 11 | 11 . . . Treads 1566 | 23 205 . 1338 Legs . | . . . . Wheels 740 | . 434 271 35 Hover . | . . . . Flight . | . . . . Fastest Speed 50 | 50 95 95 110 Average Speed 142 | 155 126 95 159 Slowest Speed 240 | 200 240 95 240 Overloaded Moves . | . . . . Propulsion Burnouts . | . . . . Robots Hopped . | . . . . Cave-ins Triggered . | . . . . Exploration Rate (%) 57 | 5 91 46 89 Regions Visited 3 Branch Regions 1 Pre-discovered Areas . | . . . . Known Exits Taken 1 | . 1 . . Unknown Exits Taken 2 | 1 . 1 . Scrap Searched 1 | . . 1 . Spaces Dug . | . . . . Terrain Destroyed 32 | . . . 32 Melee . | . . . . Projectile . | . . . . AOE 32 | . . . 32 Terrain Rammed . | . . . . Walls Destroyed . | . . . . Machines Disabled . | . . . . Actions | -11 -10 -10 -9 --------- Run | Yrd Mat Min Mat Total 2930 | 40 788 322 1780 Wait 202 | . 43 37 122 Move 2314 | 33 638 270 1373 Hop . | . . . . Pick Up 35 | . 15 3 17 Fast Attach 30 | 6 5 . 19 Attach 11 | . 1 2 8 Detach 1 | . 1 . . Swap 32 | 1 3 . 28 Drop 38 | . 5 1 32 Fire 257 | . 75 8 174 Melee . | . . . . Ram 2 | . . 1 1 Kick . | . . . . Crush 8 | . 2 . 6 Escape Stasis . | . . . . Rewire . | . . . . Trap . | . . . . Miscellaneous . | . . . . Route ------- -11/Scrapyard -10/Materials (discovered 3 exits: *Mat x2 / *Min) -10/Mines -9/Materials (discovered 5 exits: *Mat x3 / *Min x2) History --------- Turn | Location | Event 15 | -11/Scrapyard | Discovered new exit (range 16) 63 | -11/Scrapyard | Entered Materials 226 | -10/Materials | Discovered new exit (range 12) 315 | -10/Materials | Build established: Mutant 511 | -10/Materials | Discovered new exit (range 12) 549 | -10/Materials | Core integrity fell below 50% 746 | -10/Materials | Central database locked down 769 | -10/Materials | Core integrity fell below 20% 923 | -10/Materials | Discovered new exit (range 4) 1064 | -10/Materials | Identified exit to Mines 1164 | -10/Materials | Entered Mines 1167 | -10/Mines | Received a Mining Laser from a helpful Derelict 1178 | -10/Mines | Met a Derelict bent on vengeance 1360 | -10/Mines | Discovered new exit (range 13) 1370 | -10/Mines | Learned 8 Materials zone layouts 1486 | -10/Mines | Entered Materials 1486 | -9/Materials | Evolved 2 slots: Propulsion x1, Utility x1 1487 | -9/Materials | Identified exit to Materials 1487 | -9/Materials | Identified exit to Mines 2121 | -9/Materials | Discovered exit to Materials (range 11) 2241 | -9/Materials | Build established: Scavenger-Mutant 2337 | -9/Materials | Discovered exit to Materials (range 14) 2686 | -9/Materials | First assault squad dispatched 2844 | -9/Materials | Lost 4 parts (1p2u1w) 3057 | -9/Materials | Core integrity fell below 50% 4275 | -9/Materials | Build established: Mutant 4362 | -9/Materials | Self-destructed Last Messages --------------- Ion Engine discarded by recycling unit. Acquired Sml. Laser. R-06 Scavenger inserts Lgt. Nuclear Core into recycling unit. Lgt. Nuclear Core discarded by recycling unit. System corrupted: Matter fused (-6). Acquired 10 matter. ALERT: Significant disruption in Zone 8S, multiple assault carriers dispatched. C-30 ARC bursts open, deploying its payload. L-31 Rogue unfolds itself. G-34 Mercenary unfolds itself. L-31 Rogue unfolds itself. Lgt. Treads destroyed. System corrupted: Matter fused (-6). Hvy. Assault Rifle destroyed. L-31 Rogue destroyed. R-06 Scavenger collects Katana. R-06 Scavenger collects Imp. Aluminum Leg. Imp. Treads destroyed. Map ----- +----------------------------------------------------+ | # """# ##### """ #????????# | | + "" # ! # # """ #????????# ##### | | # """# # # """= #????????# #??# | | ###### ""# #!! # #????????# #??# | | ###??# """# #!! # """ #????????# #??# | | ###??# " # #!! + """ #????????# #??# | | ##?# # # # """ #????????# #??# | | ###############+#### # #???????## ##?# | | # ####### ###+######+########## #?# | | # % " #?# | | +% "T #?# | | # #### | | # ####### # #############+### ## | | ## ####?????####### #??????????# ### #### | | ## # #????????????# #??????????# #?# #??# | | #### # #????????????# #??????????# #?# #??# | | # # #????????????# #??????????# #?# #??#"" | | ## # # #????????????# "#??????????# #?# #??#"T | | ### ###????????????# "%#??????????# #?#% #??#"" | | #?# #??????????????# "############ #?# %#??# | | #?# #??????????????#% # ######?# ###### | | #?# #??#######?????# # """ """ ######## | | ### #### ####### Ci# """ """ # # | | # g# """ """ # T # | | # gl # + """ | | # #@ # # " | | # #### ####### # # ###### """ | | ## #??#######?????# # ##????# | | / ##?????????????# ###########?????# | | = * ##???########### #???????????????# | | = ###### # #???????????????# | | #= # # ###########????###+####### | | ## # # # # | #????# # | | ## # # + + """"" #????# # | | ## # # # # """"" #????# """ # | | ## # # # # """"" #????# """ !! + | | ## # # # # #????# """ !! # | | ## # # ##### "" "" #????# """ !! # | | + ###########???# ""S"" #????# """ # | | ## # #?????????????# """" #????# ! # | | ###+#######?????????????###################+###### | | ! #?????????????????????# """"" ### ##???# | | #?????????????????????# """"" # ##### | | """ #?????????????????????# """"" + | | """"" !#?????????????????????# # | | """"" #?????????????????????# # ##### | | """"" #?????????????????????# ######???# | | """ =#?????????????????????# #????????# | | ?? #?????????????????????# #????????# | | ??? #?????????????????????###########????????# | +----------------------------------------------------+ Best States ------------- Heat Dissipation 28 Energy Generation 14 Energy Capacity 265 Matter Stores 300 Matter Capacity 300 Sight Range 16 Terrain Scan Density 10 Armor Coverage 300 Evasion (%) 41 Targeting Accuracy 6 Recoil Reduction 3 Item Schematics ----------------- Hacking Suite | -9/Materials | Scanalyzed Robot Schematics ------------------ None Fabricated ------------ Nothing Alien Tech Used ----------------- None Achievements -------------- None Challenges ------------ None Game ------ Seed DrainedDeliveryPrototype Manual? 0 Play Time 00:44:56 Cumulative 11.4 hours Start 2024.04.22 @ 12:45:05 End 2024.04.22 @ 13:37:56 Sessions 1 Manual Loads 0 Difficulty Rogue Special Mode None Game No. 8 Rogue 8 Adventurer 0 Explorer 0 Win Type - Total 0 Types 0/0/0/0/0/0/0/0/0 Lore% 2 Gallery% 11 Achievement% 14 Wizard Run 0 Options --------- Layout 1 ASCII 0 Keyboard 0 Movement Mouse Keybinds 0 Fullscreen 2 Font 24/Smallcaps Map View 50x35 Zoom Use 0% Tactical HUD 0 Map Filters NONE Filters NONE Steam X RUN: c67b5435-b4b3-4b42-9340-bb4457d3b76d